[Event "2nd Summer Festival Belgrade GM 2019"]
[Site "Belgrade"]
[Date "2019.06.27"]
[Round "5.3"]
[White "Abramovic, Bosko"]
[Black "Chen, Peng"]
[Result "0-1"]
[ECO "A46"]
[WhiteElo "2353"]
[BlackElo "2328"]
[Annotator "RC"]
[PlyCount "84"]
[EventDate "2019.06.26"]
[EventType "tourn"]
[EventCountry "SRB"]
[SourceTitle "playchess.com"]
[Source "ChessBase"]
[SourceQuality "1"]
[TimeControl "5400+30"]

1. d4 {[%emt 0:04:28]} Nf6 {[%emt 0:00:00]} 2. Nf3 {[%emt 0:00:10]} c5 {[%emt 0:00:00]} 3. c3 {[%emt 0:01:22]} Qc7 {[%emt 0:00:03]} 4. g3 {[%emt 0:00:29]} d6 {[%emt 0:00:09]} 5. Bg2 {[%emt 0:00:09]} g6 {[%emt 0:00:38]} 6. O-O {[%emt 0:00:11]} Bg7 {[%emt 0:00:02]} 7. Re1 {[%emt 0:00:31]} Bf5 {[%emt 0:00:45]} 8. Nbd2 {[%emt 0:00:57]} cxd4 {[%emt 0:00:26]} 9. Nxd4 {[%emt 0:00:11]} Bd7 {[%emt 0:00:40]} 10. c4 {[%emt 0:01:23]} Nc6 {[%emt 0:01:41]} 11. Nb5 {[%emt 0:04:02]} Qc8 {[%emt 0:03:00]} 12. Nc3 {[%emt 0:00:48]} Bh3 {[%emt 0:00:40]} 13. b3 {[%emt 0:01:14]} h5 {[%emt 0:01:05]} 14. Bh1 {[%emt 0:02:10]} h4 {[%emt 0:04:39]} 15. Bb2 {[%emt 0:01:42]} Ne5 {[%emt 0:08:35]} 16. Nf3 {[%emt 0:04:38]} hxg3 {[%emt 0:06:31]} 17. hxg3 {[%emt 0:16:28]} Bf1 {[%emt 0:15:37]} 18. Ng5 {[%emt 0:02:24]} Qf5 {[%emt 0:05:40]} 19. Rxf1 {[%emt 0:05:26]} Qxg5 {[%emt 0:00:15]} 20. Bg2 {[%emt 0:00:44]} Nfg4 {[%emt 0:05:58]} 21. Qd5 {[%emt 0:12:55]} Qh5 {[%emt 0:16:26]} 22. Rfd1 {[%emt 0:07:55]} Qh2+ {[%emt 0:05:13]} 23. Kf1 {[%emt 0:00:01]} Nxf2 {[%emt 0:01:17]} 24. Qxb7 {[%emt 0:08:55]} O-O {[%emt 0:06:46]} 25. Kxf2 {[%emt 0:02:10]} Ng4+ {[%emt 0:00:08]} 26. Kf3 {[%emt 0:10:52]} Be5 {[%emt 0:00:08]} 27. Ne4 {[%emt 0:02:32]} f5 {[%emt 0:01:41]} 28. Qd5+ {[%emt 0:00:47]} Kg7 {[%emt 0:06:28]} 29. Bxe5+ {[%emt 0:01:46]} Nxe5+ {[%emt 0:00:09]} 30. Ke3 {[%emt 0:03:03]} Ng4+ {[%emt 0:03:02]} 31. Kd2 {[%emt 0:01:42]} Qh6+ {[%emt 0:01:32]} 32. Kc3 {[%emt 0:01:56]} fxe4 {[%emt 0:00:18]} 33. Qxe4 {[%emt 0:00:36]} Ne5 {[%emt 0:01:34]} 34. Rh1 {[%emt 0:01:02]} Qg5 {[%emt 0:00:06]} 35. Rh4 {[%emt 0:00:20]} Qxg3+ {[%emt 0:00:27]} 36. Bf3 {[%emt 0:00:21]} Rh8 {[%emt 0:01:09]} 37. Rg4 {[%emt 0:01:32]} Nxg4 {[%emt 0:01:40]} 38. Qxe7+ {[%emt 0:00:02]} Kg8 {[%emt 0:01:51]} 39. Rg1 {[%emt 0:00:21]} Qe5+ {[%emt 0:00:52]} 40. Qxe5 {[%emt 0:00:10]} Nxe5 {[%emt 0:00:15]} 41. Bxa8 {[%emt 0:00:15]} Kg7 {[%emt 0:00:22]} 42. Kd4 {[%emt 0:02:20]} Rxa8 {[%emt 0:03:12]} 0-1

[Event "2nd Summer Festival Belgrade GM 2019"]
[Site "Belgrade"]
[Date "2019.06.27"]
[Round "5.5"]
[White "Salimova, Nurgyul"]
[Black "Strikovic, Aleksa"]
[Result "1-0"]
[ECO "C41"]
[WhiteElo "2416"]
[BlackElo "2503"]
[Annotator "RC"]
[PlyCount "35"]
[EventDate "2019.06.26"]
[EventType "tourn"]
[EventCountry "SRB"]
[SourceTitle "playchess.com"]
[Source "ChessBase"]
[SourceQuality "1"]
[TimeControl "5400+30"]

1. e4 {[%emt 0:00:00]} d6 {[%emt 0:00:00]} 2. d4 {[%emt 0:00:00]} Nf6 {[%emt 0:00:00]} 3. Nc3 {[%emt 0:00:00]} e5 {[%emt 0:00:00]} 4. Nf3 {[%emt 0:00:16]} Nbd7 {[%emt 0:00:00]} 5. g4 {[%emt 0:00:35]} Nxg4 {[%emt 0:00:03]} 6. Rg1 {[%emt 0:01:05]} Ngf6 {[%emt 0:00:04]} 7. Bc4 {[%emt 0:00:41]} exd4 {[%emt 0:02:52]} 8. Qxd4 {[%emt 0:03:10]} c6 {[%emt 0:01:17]} 9. Bf4 {[%emt 0:03:54]} Nc5 {[%emt 0:12:40]} 10. e5 {[%emt 0:10:17]} Qe7 {[%emt 0:00:08]} 11. O-O-O {[%emt 0:00:47]} dxe5 {[%emt 0:00:06]} 12. Bxe5 {[%emt 0:01:39]} Be6 {[%emt 0:01:33]} 13. Ng5 {[%emt 0:15:03]} Ncd7 {[%emt 0:46:35]} 14. Rge1 {[%emt 0:16:54]} O-O-O {[%emt 0:11:27]} 15. Bxe6 {[%emt 0:01:07]} fxe6 {[%emt 0:00:10]} 16. Qxa7 {[%emt 0:00:35]} Nxe5 {[%emt 0:00:33]} 17. Qa8+ {[%emt 0:00:20]} Kc7 {[%emt 0:00:05]} 18. Nxe6+ {[%emt 0:00:11]} 1-0

[Event "2nd Summer Festival Belgrade GM 2019"]
[Site "Belgrade"]
[Date "2019.06.27"]
[Round "6.1"]
[White "Yu, Jennifer"]
[Black "Damljanovic, Branko"]
[Result "0-1"]
[ECO "E62"]
[WhiteElo "2369"]
[BlackElo "2468"]
[Annotator "RC"]
[PlyCount "156"]
[EventDate "2019.06.25"]
[EventType "tourn"]
[EventCountry "SRB"]
[SourceTitle "playchess.com"]
[Source "ChessBase"]
[SourceQuality "1"]
[TimeControl "5400+30"]

1. c4 {[%emt 0:00:00]} g6 {[%emt 0:00:26]} 2. Nc3 {[%emt 0:00:00]} Bg7 {[%emt 0:00:02]} 3. g3 {[%emt 0:00:00]} Nf6 {[%emt 0:00:23]} 4. Bg2 {[%emt 0:00:05]} O-O {[%emt 0:00:07]} 5. d4 {[%emt 0:00:11]} d6 {[%emt 0:00:03]} 6. Nf3 {[%emt 0:00:09]} Nc6 {[%emt 0:00:04]} 7. O-O {[%emt 0:00:11]} Bf5 {[%emt 0:00:04]} 8. d5 {[%emt 0:00:27]} Na5 {[%emt 0:00:03]} 9. Nd2 {[%emt 0:00:10]} Ne8 {[%emt 0:00:08]} 10. e4 {[%emt 0:02:16]} Bd7 {[%emt 0:00:01]} 11. Qc2 {[%emt 0:01:16]} c6 {[%emt 0:00:13]} 12. Rb1 {[%emt 0:12:27]} Rc8 {[%emt 0:06:30]} 13. Qd3 {[%emt 0:01:17]} cxd5 {[%emt 0:00:39]} 14. Nxd5 {[%emt 0:10:39]} e6 {[%emt 0:13:26]} 15. Ne3 {[%emt 0:01:35]} Nc6 {[%emt 0:03:22]} 16. a3 {[%emt 0:09:15]} Qe7 {[%emt 0:12:18]} 17. f4 {[%emt 0:02:39]} Nf6 {[%emt 0:03:25]} 18. b4 {[%emt 0:03:06]} Rfd8 {[%emt 0:00:08]} 19. Bb2 {[%emt 0:01:46]} Be8 {[%emt 0:09:43]} 20. g4 {[%emt 0:17:45]} h6 {[%emt 0:00:26]} 21. h4 {[%emt 0:00:32]} g5 {[%emt 0:08:40]} 22. hxg5 {[%emt 0:03:43]} hxg5 {[%emt 0:01:05]} 23. b5 {[%emt 0:00:04]} gxf4 {[%emt 0:01:41]} 24. bxc6 {[%emt 0:00:38]} fxe3 {[%emt 0:00:02]} 25. Bxf6 {[%emt 0:15:22]} Bxf6 {[%emt 0:00:35]} 26. Rxb7 {[%emt 0:00:22]} Qf8 {[%emt 0:09:00]} 27. Rxf6 {[%emt 0:04:21]} Qg7 {[%emt 0:08:09]} 28. Rf1 {[%emt 0:05:10]} exd2 {[%emt 0:00:31]} 29. Qxd2 {[%emt 0:00:04]} Rxc6 {[%emt 0:00:44]} 30. Rb5 {[%emt 0:01:44]} e5 {[%emt 0:03:40]} 31. Rf5 {[%emt 0:00:15]} Kf8 {[%emt 0:03:20]} 32. c5 {[%emt 0:05:23]} Rcc8 {[%emt 0:00:39]} 33. c6 {[%emt 0:02:28]} Rxc6 {[%emt 0:00:55]} 34. Rb7 {[%emt 0:00:46]} Rb6 {[%emt 0:06:06]} 35. Rxa7 {[%emt 0:00:35]} Bd7 {[%emt 0:06:30]} 36. Rf1 {[%emt 0:00:07]} Be6 {[%emt 0:01:36]} 37. g5 {[%emt 0:00:31]} Kg8 {[%emt 0:01:32]} 38. Rf6 {[%emt 0:00:31]} Re8 {[%emt 0:00:59]} 39. Qe3 {[%emt 0:00:37]} Rb3 {[%emt 0:00:24]} 40. Rxe6 {[%emt 0:00:55]} Rxe3 {[%emt 0:00:03]} 41. Rxe8+ {[%emt 0:00:02]} Kh7 {[%emt 0:00:19]} 42. Kf2 {[%emt 0:00:20]} Rd3 {[%emt 0:01:30]} 43. Bf3 {[%emt 0:00:09]} Qg6 {[%emt 0:01:01]} 44. Bg4 {[%emt 0:00:57]} Qxe4 {[%emt 0:00:34]} 45. Rxf7+ {[%emt 0:00:12]} Kg6 {[%emt 0:00:02]} 46. Bf5+ {[%emt 0:00:48]} Qxf5+ {[%emt 0:00:01]} 47. Rxf5 {[%emt 0:00:04]} Kxf5 {[%emt 0:00:07]} 48. a4 {[%emt 0:00:44]} Kxg5 {[%emt 0:01:11]} 49. a5 {[%emt 0:00:06]} Kf5 {[%emt 0:00:18]} 50. Rd8 {[%emt 0:01:00]} Ke6 {[%emt 0:00:14]} 51. a6 {[%emt 0:00:31]} Ra3 {[%emt 0:00:03]} 52. Ra8 {[%emt 0:00:06]} Kd7 {[%emt 0:00:27]} 53. Ke2 {[%emt 0:00:30]} Kc7 {[%emt 0:00:26]} 54. Kd2 {[%emt 0:00:38]} e4 {[%emt 0:00:55]} 55. a7 {[%emt 0:00:49]} d5 {[%emt 0:00:34]} 56. Ke2 {[%emt 0:00:15]} Ra5 {[%emt 0:00:08]} 57. Ke3 {[%emt 0:00:37]} Kb7 {[%emt 0:02:10]} 58. Rd8 {[%emt 0:00:27]} Kxa7 {[%emt 0:00:02]} 59. Kd4 {[%emt 0:00:04]} Kb7 {[%emt 0:00:05]} 60. Rd6 {[%emt 0:00:18]} Kc7 {[%emt 0:00:02]} 61. Rh6 {[%emt 0:00:13]} Rb5 {[%emt 0:00:17]} 62. Rg6 {[%emt 0:00:23]} Kb7 {[%emt 0:00:25]} 63. Rd6 {[%emt 0:01:54]} Ka7 {[%emt 0:00:10]} 64. Rh6 {[%emt 0:00:16]} Rb6 {[%emt 0:00:09]} 65. Rh7+ {[%emt 0:00:18]} Rb7 {[%emt 0:00:01]} 66. Rh1 {[%emt 0:00:30]} Rd7 {[%emt 0:00:01]} 67. Rb1 {[%emt 0:00:10]} Ka6 {[%emt 0:00:03]} 68. Rb2 {[%emt 0:01:28]} Rd8 {[%emt 0:00:07]} 69. Rb1 {[%emt 0:00:32]} Ka5 {[%emt 0:00:01]} 70. Rb2 {[%emt 0:00:28]} Ka4 {[%emt 0:00:01]} 71. Rb1 {[%emt 0:00:25]} Ka3 {[%emt 0:00:01]} 72. Rb7 {[%emt 0:00:16]} Ka2 {[%emt 0:00:02]} 73. Rb6 {[%emt 0:00:38]} Re8 {[%emt 0:00:10]} 74. Kc3 {[%emt 0:00:53]} d4+ {[%emt 0:01:08]} 75. Kxd4 {[%emt 0:00:27]} e3 {[%emt 0:00:02]} 76. Ra6+ {[%emt 0:00:05]} Kb2 {[%emt 0:00:06]} 77. Kd3 {[%emt 0:00:36]} e2 {[%emt 0:00:09]} 78. Rb6+ {[%emt 0:00:05]} Ka3 {[%emt 0:00:26]} 0-1

[Event "2nd Summer Festival Belgrade GM 2019"]
[Site "Belgrade"]
[Date "2019.06.27"]
[Round "6.2"]
[White "Strikovic, Aleksa"]
[Black "Damjanovic, Vuk"]
[Result "1/2-1/2"]
[ECO "D11"]
[WhiteElo "2503"]
[BlackElo "2283"]
[Annotator "ChessBase"]
[PlyCount "88"]
[EventDate "2019.06.25"]
[EventType "tourn"]
[EventCountry "SRB"]
[SourceTitle "playchess.com"]
[Source "ChessBase"]
[SourceQuality "1"]
[TimeControl "5400+30"]

1. Nf3 {[%emt 0:01:39]} Nf6 {[%emt 0:00:50]} 2. g3 {[%emt 0:00:27]} d5 {[%emt 0:00:51]} 3. Bg2 {[%emt 0:00:06]} Bg4 {[%emt 0:00:46]} 4. c4 {[%emt 0:02:02]} c6 {[%emt 0:00:23]} 5. Qb3 {[%emt 0:02:03]} Qb6 {[%emt 0:00:41]} 6. Nc3 {[%emt 0:01:32]} e6 {[%emt 0:02:11]} 7. d4 {[%emt 0:02:22]} Nbd7 {[%emt 0:01:34]} 8. O-O {[%emt 0:02:56]} Be7 {[%emt 0:03:09]} 9. Rd1 {[%emt 0:02:37]} O-O {[%emt 0:09:06]} 10. Bf4 {[%emt 0:04:42]} Ne4 {[%emt 0:07:58]} 11. Nxe4 {[%emt 0:10:52]} dxe4 {[%emt 0:00:53]} 12. Nd2 {[%emt 0:00:05]} Bxe2 {[%emt 0:04:34]} 13. Re1 {[%emt 0:00:04]} Bd3 {[%emt 0:05:35]} 14. Nxe4 {[%emt 0:12:32]} Qxb3 {[%emt 0:04:00]} 15. axb3 {[%emt 0:00:02]} Bb4 {[%emt 0:00:54]} 16. Bd2 {[%emt 0:05:57]} Bxd2 {[%emt 0:01:27]} 17. Nxd2 {[%emt 0:00:05]} Nf6 {[%emt 0:02:53]} 18. Re3 {[%emt 0:15:19]} Bg6 {[%emt 0:00:47]} 19. b4 {[%emt 0:01:38]} Rad8 {[%emt 0:50:58]} 20. Nb3 {[%emt 0:04:10]} a6 {[%emt 0:00:00]} 21. Rc1 {[%emt 0:03:39]} Ne8 {[%emt 0:00:00]} 22. g4 {[%emt 0:08:12]} h5 {[%emt 0:00:00]} 23. h3 {[%emt 0:00:22]} hxg4 {[%emt 0:00:00]} 24. hxg4 {[%emt 0:00:02]} Nf6 {[%emt 0:00:00]} 25. Bf3 {[%emt 0:00:31]} Rd6 {[%emt 0:00:00]} 26. Kg2 {[%emt 0:00:57]} Rfd8 {[%emt 0:00:00]} 27. Kg3 {[%emt 0:00:05]} Kf8 {[%emt 0:00:00]} 28. Bg2 {[%emt 0:00:58]} Ne8 {[%emt 0:00:00]} 29. f4 {[%emt 0:02:18]} Nc7 {[%emt 0:00:00]} 30. Kf2 {[%emt 0:03:41]} f6 {[%emt 0:00:00]} 31. Kg3 {[%emt 0:07:43]} Bf7 {[%emt 0:00:00]} 32. Rcc3 {[%emt 0:03:45]} Bg6 {[%emt 0:01:25]} 33. Kf2 {[%emt 0:00:31]} Kf7 {[%emt 0:00:55]} 34. Re1 {[%emt 0:01:02]} Bh7 {[%emt 0:01:13]} 35. Bf3 {[%emt 0:01:17]} Bg6 {[%emt 0:00:44]} 36. Kg3 {[%emt 0:00:16]} Kf8 {[%emt 0:02:24]} 37. Rce3 {[%emt 0:00:49]} Rb8 {[%emt 0:01:06]} 38. Be4 {[%emt 0:00:49]} Bxe4 {[%emt 0:00:56]} 39. Rxe4 {[%emt 0:00:02]} b6 {[%emt 0:01:17]} 40. f5 {[%emt 0:00:15]} exf5 {[%emt 0:00:00]} 41. gxf5 {[%emt 0:00:22]} Rd7 {[%emt 0:00:28]} 42. Kf3 {[%emt 0:00:39]} Re8 {[%emt 0:00:30]} 43. Rxe8+ {[%emt 0:00:38]} Nxe8 {[%emt 0:00:01]} 44. Kf4 {[%emt 0:01:10]} Re7 {[%emt 0:00:25]} 1/2-1/2

[Event "2nd Summer Festival Belgrade GM 2019"]
[Site "Belgrade"]
[Date "2019.06.27"]
[Round "6.3"]
[White "Nandhidhaa, P V"]
[Black "Salimova, Nurgyul"]
[Result "1/2-1/2"]
[ECO "C48"]
[WhiteElo "2259"]
[BlackElo "2416"]
[Annotator "NA"]
[PlyCount "86"]
[EventDate "2019.06.25"]
[EventType "tourn"]
[EventCountry "SRB"]
[SourceTitle "playchess.com"]
[Source "ChessBase"]
[SourceQuality "1"]
[TimeControl "5400+30"]

1. e4 {[%emt 0:00:00]} e5 {[%emt 0:00:00]} 2. Nf3 {[%emt 0:00:00]} Nc6 {[%emt 0:00:00]} 3. Nc3 {[%emt 0:00:00]} Nf6 {[%emt 0:00:00]} 4. Bb5 {[%emt 0:00:15]} Bd6 {[%emt 0:00:19]} 5. d3 {[%emt 0:00:06]} a6 {[%emt 0:00:27]} 6. Ba4 {[%emt 0:00:09]} O-O {[%emt 0:02:10]} 7. a3 {[%emt 0:00:09]} Nd4 {[%emt 0:01:24]} 8. Bg5 {[%emt 0:03:09]} c6 {[%emt 0:15:47]} 9. O-O {[%emt 0:09:11]} Nxf3+ 10. Qxf3 {[%emt 0:00:27]} Be7 {[%emt 0:03:32]} 11. Bb3 {[%emt 0:04:12]} d6 {[%emt 0:00:21]} 12. Nd1 {[%emt 0:05:19]} Bg4 {[%emt 0:02:28]} 13. Qg3 {[%emt 0:01:20]} Bxd1 {[%emt 0:09:38]} 14. Rfxd1 {[%emt 0:05:05]} Nh5 {[%emt 0:01:39]} 15. Bxe7 {[%emt 0:00:41]} Qxe7 {[%emt 0:00:08]} 16. Qf3 {[%emt 0:02:24]} Nf6 {[%emt 0:05:07]} 17. Re1 {[%emt 0:00:52]} Rad8 {[%emt 0:04:00]} 18. Qf5 {[%emt 0:02:00]} Nd7 {[%emt 0:04:00]} 19. Re3 {[%emt 0:04:29]} g6 {[%emt 0:00:34]} 20. Qg4 {[%emt 0:00:58]} Kh8 {[%emt 0:01:37]} 21. Rh3 {[%emt 0:05:31]} Kg7 {[%emt 0:02:50]} 22. Re1 {[%emt 0:08:38]} Nc5 {[%emt 0:09:08]} 23. Ba2 {[%emt 0:01:13]} Ne6 {[%emt 0:01:12]} 24. c3 {[%emt 0:02:01]} Nf4 {[%emt 0:01:07]} 25. Rhe3 {[%emt 0:04:25]} h5 {[%emt 0:01:37]} 26. Qf3 {[%emt 0:06:44]} Rh8 {[%emt 0:05:35]} 27. g3 {[%emt 0:05:46]} Ne6 {[%emt 0:02:41]} 28. h4 {[%emt 0:02:03]} Rhe8 {[%emt 0:05:00]} 29. Qd1 {[%emt 0:03:30]} Qc7 {[%emt 0:01:04]} 30. R1e2 {[%emt 0:02:11]} Qb6 {[%emt 0:00:35]} 31. Rd2 {[%emt 0:00:39]} Nc5 {[%emt 0:02:30]} 32. b4 {[%emt 0:01:12]} Nd7 {[%emt 0:00:45]} 33. Rf3 {[%emt 0:01:52]} Re7 {[%emt 0:01:37]} 34. Qb3 {[%emt 0:03:21]} Nf6 {[%emt 0:01:09]} 35. d4 {[%emt 0:17:38]} Qc7 {[%emt 0:00:57]} 36. dxe5 {[%emt 0:00:00]} dxe5 {[%emt 0:00:47]} 37. Rxd8 {[%emt 0:00:00]} Qxd8 {[%emt 0:00:01]} 38. Qc4 {[%emt 0:00:00]} Rd7 {[%emt 0:02:41]} 39. Kg2 {[%emt 0:00:00]} Qe8 {[%emt 0:01:14]} 40. Qe2 {[%emt 0:00:00]} Qd8 {[%emt 0:01:28]} 41. Qc4 {[%emt 0:00:00]} Qe8 {[%emt 0:02:17]} 42. Qe2 {[%emt 0:00:00]} Qd8 {[%emt 0:02:33]} 43. Qc4 {[%emt 0:00:00]} Qe8 {[%emt 0:01:08]} 1/2-1/2

[Event "2nd Summer Festival Belgrade GM 2019"]
[Site "Belgrade"]
[Date "2019.06.27"]
[Round "6.4"]
[White "Chen, Peng"]
[Black "Lee, Jun Hyeok"]
[Result "1/2-1/2"]
[ECO "C70"]
[WhiteElo "2328"]
[BlackElo "2386"]
[Annotator "NA"]
[PlyCount "114"]
[EventDate "2019.06.25"]
[EventType "tourn"]
[EventCountry "SRB"]
[SourceTitle "playchess.com"]
[Source "ChessBase"]
[SourceQuality "1"]
[TimeControl "5400+30"]

1. e4 {[%emt 0:00:00]} e5 {[%emt 0:00:00]} 2. Nf3 {[%emt 0:00:00]} Nc6 {[%emt 0:00:00]} 3. Bb5 {[%emt 0:00:00]} a6 {[%emt 0:00:00]} 4. Ba4 {[%emt 0:00:00]} b5 {[%emt 0:00:00]} 5. Bb3 {[%emt 0:00:00]} Na5 {[%emt 0:00:03]} 6. d4 {[%emt 0:07:49]} exd4 {[%emt 0:00:15]} 7. Qxd4 {[%emt 0:00:19]} Ne7 {[%emt 0:00:24]} 8. Bd2 {[%emt 0:07:57]} Nxb3 {[%emt 0:01:06]} 9. axb3 {[%emt 0:00:02]} Nc6 {[%emt 0:01:00]} 10. Qd5 {[%emt 0:01:37]} Bb7 {[%emt 0:03:32]} 11. O-O {[%emt 0:01:02]} Be7 {[%emt 0:04:20]} 12. Nd4 {[%emt 0:21:22]} Nxd4 {[%emt 0:06:01]} 13. Qxd4 {[%emt 0:00:05]} O-O {[%emt 0:05:45]} 14. Bc3 {[%emt 0:00:38]} f6 {[%emt 0:00:28]} 15. Ba5 {[%emt 0:00:55]} d5 {[%emt 0:10:27]} 16. exd5 {[%emt 0:02:21]} Qxd5 {[%emt 0:00:15]} 17. Qxd5+ {[%emt 0:01:16]} Bxd5 {[%emt 0:00:02]} 18. Nc3 {[%emt 0:00:11]} Bf7 {[%emt 0:01:32]} 19. Rfd1 {[%emt 0:08:22]} Rfd8 {[%emt 0:09:55]} 20. b4 {[%emt 0:08:50]} Rxd1+ {[%emt 0:03:44]} 21. Rxd1 {[%emt 0:00:49]} c5 {[%emt 0:01:43]} 22. bxc5 {[%emt 0:04:08]} Bxc5 {[%emt 0:00:08]} 23. Nd5 {[%emt 0:00:16]} Bh5 {[%emt 0:13:14]} 24. Nxf6+ {[%emt 0:01:03]} gxf6 {[%emt 0:00:08]} 25. Rd5 {[%emt 0:00:02]} Bxf2+ {[%emt 0:02:26]} 26. Kxf2 {[%emt 0:00:02]} Bg4 {[%emt 0:00:33]} 27. Rd6 {[%emt 0:06:23]} Kf7 {[%emt 0:00:11]} 28. h3 {[%emt 0:01:13]} Be6 {[%emt 0:00:44]} 29. Rb6 {[%emt 0:00:41]} Rc8 {[%emt 0:03:30]} 30. c3 {[%emt 0:02:08]} Ra8 {[%emt 0:02:11]} 31. Rb7+ {[%emt 0:01:34]} Kg6 {[%emt 0:02:29]} 32. Re7 {[%emt 0:00:27]} Bc4 {[%emt 0:01:26]} 33. Ke3 {[%emt 0:04:08]} Rc8 {[%emt 0:01:18]} 34. Bc7 {[%emt 0:00:19]} Rf8 {[%emt 0:02:17]} 35. g3 {[%emt 0:00:57]} Rf7 {[%emt 0:01:55]} 36. Rxf7 {[%emt 0:00:04]} Kxf7 {[%emt 0:01:33]} 37. Kd4 {[%emt 0:00:08]} Ke6 {[%emt 0:00:08]} 38. Kc5 {[%emt 0:00:14]} Kd7 {[%emt 0:00:20]} 39. Ba5 {[%emt 0:00:15]} Bf1 {[%emt 0:02:04]} 40. h4 {[%emt 0:00:13]} h5 {[%emt 0:00:16]} 41. Kb6 {[%emt 0:00:41]} Be2 {[%emt 0:00:20]} 42. Bb4 {[%emt 0:00:04]} f5 {[%emt 0:00:13]} 43. Kxa6 {[%emt 0:00:15]} Kc6 {[%emt 0:00:04]} 44. Ka5 {[%emt 0:00:06]} Bd1 {[%emt 0:00:29]} 45. Bf8 {[%emt 0:00:30]} Be2 {[%emt 0:00:10]} 46. Kb4 {[%emt 0:00:14]} Bf1 {[%emt 0:00:16]} 47. Bc5 {[%emt 0:01:55]} Be2 {[%emt 0:00:07]} 48. Be3 {[%emt 0:00:10]} Bf1 {[%emt 0:00:10]} 49. b3 {[%emt 0:00:32]} Be2 {[%emt 0:00:05]} 50. c4 {[%emt 0:00:34]} bxc4 {[%emt 0:00:03]} 51. bxc4 {[%emt 0:00:03]} Bg4 {[%emt 0:00:12]} 52. Kc3 {[%emt 0:00:05]} Bf3 {[%emt 0:00:11]} 53. Kd4 {[%emt 0:00:03]} Bg4 {[%emt 0:00:07]} 54. Ke5 {[%emt 0:00:05]} Be2 {[%emt 0:00:06]} 55. c5 {[%emt 0:00:16]} Bg4 {[%emt 0:00:04]} 56. Kf4 {[%emt 0:00:30]} Bd1 {[%emt 0:00:10]} 57. Kxf5 {[%emt 0:00:08]} Bg4+ {[%emt 0:00:06]} 1/2-1/2

[Event "2nd Summer Festival Belgrade GM 2019"]
[Site "Belgrade"]
[Date "2019.06.27"]
[Round "6.5"]
[White "Ernst, Sipke"]
[Black "Abramovic, Bosko"]
[Result "1/2-1/2"]
[ECO "A13"]
[WhiteElo "2541"]
[BlackElo "2353"]
[Annotator "ChessBase"]
[PlyCount "119"]
[EventDate "2019.06.25"]
[EventType "tourn"]
[EventCountry "SRB"]
[SourceTitle "playchess.com"]
[Source "ChessBase"]
[SourceQuality "1"]
[TimeControl "5400+30"]

1. Nf3 {[%emt 0:00:00]} Nf6 {[%emt 0:00:00]} 2. c4 {[%emt 0:00:00]} e6 {[%emt 0:00:00]} 3. g3 {[%emt 0:00:00]} d5 {[%emt 0:01:00]} 4. Bg2 {[%emt 0:00:00]} dxc4 {[%emt 0:00:06]} 5. Qa4+ {[%emt 0:00:00]} Nbd7 {[%emt 0:00:12]} 6. Qxc4 {[%emt 0:00:06]} a6 {[%emt 0:00:08]} 7. Qc2 {[%emt 0:00:16]} Rb8 {[%emt 0:00:52]} 8. a4 {[%emt 0:01:20]} b6 {[%emt 0:00:24]} 9. O-O {[%emt 0:02:45]} Bb7 {[%emt 0:00:07]} 10. Nc3 {[%emt 0:00:41]} c5 {[%emt 0:02:28]} 11. Rd1 {[%emt 0:00:07]} Rc8 {[%emt 0:01:46]} 12. d3 {[%emt 0:05:38]} Bd6 {[%emt 0:01:22]} 13. e4 {[%emt 0:06:52]} O-O {[%emt 0:10:01]} 14. Qe2 {[%emt 0:02:05]} e5 {[%emt 0:01:22]} 15. Bh3 {[%emt 0:00:13]} Rc7 {[%emt 0:15:31]} 16. Nd2 {[%emt 0:05:56]} h6 {[%emt 0:12:38]} 17. Nc4 {[%emt 0:01:47]} Qe7 {[%emt 0:00:15]} 18. Ne3 {[%emt 0:07:33]} Re8 {[%emt 0:05:05]} 19. Nf5 {[%emt 0:06:09]} Qf8 {[%emt 0:00:05]} 20. Qf3 {[%emt 0:03:36]} Kh8 {[%emt 0:00:54]} 21. Be3 {[%emt 0:00:57]} Be7 {[%emt 0:08:36]} 22. Rac1 {[%emt 0:03:51]} Bd8 {[%emt 0:07:38]} 23. Qe2 {[%emt 0:04:18]} Ng8 {[%emt 0:01:49]} 24. Qd2 {[%emt 0:02:45]} Kh7 {[%emt 0:04:21]} 25. a5 {[%emt 0:04:04]} b5 {[%emt 0:02:48]} 26. Nd5 {[%emt 0:04:01]} Bxd5 {[%emt 0:00:22]} 27. exd5 {[%emt 0:00:05]} g6 {[%emt 0:00:08]} 28. d6 {[%emt 0:00:41]} Rb7 {[%emt 0:04:30]} 29. b4 {[%emt 0:01:50]} cxb4 {[%emt 0:01:01]} 30. Qxb4 {[%emt 0:02:56]} gxf5 {[%emt 0:01:08]} 31. Bxf5+ {[%emt 0:00:12]} Kh8 {[%emt 0:00:07]} 32. Qe4 {[%emt 0:06:33]} Rb8 {[%emt 0:01:21]} 33. Bxd7 {[%emt 0:00:29]} Nf6 {[%emt 0:00:05]} 34. Qf5 {[%emt 0:00:43]} Nxd7 {[%emt 0:00:42]} 35. Qxd7 {[%emt 0:00:06]} Bxa5 {[%emt 0:00:14]} 36. Bc5 {[%emt 0:05:22]} Bb6 {[%emt 0:00:45]} 37. d4 {[%emt 0:02:18]} exd4 {[%emt 0:00:16]} 38. Bxd4+ {[%emt 0:02:28]} Bxd4 {[%emt 0:02:37]} 39. Rxd4 {[%emt 0:00:04]} Rbd8 {[%emt 0:00:34]} 40. Qb7 {[%emt 0:08:21]} Rxd6 {[%emt 0:00:45]} 41. Rxd6 {[%emt 0:00:22]} Qxd6 {[%emt 0:00:32]} 42. Qxf7 {[%emt 0:00:34]} Rf8 {[%emt 0:00:29]} 43. Qa2 {[%emt 0:01:28]} b4 {[%emt 0:01:56]} 44. h4 {[%emt 0:00:07]} Qd4 {[%emt 0:03:49]} 45. Rf1 {[%emt 0:01:17]} Qf6 {[%emt 0:00:30]} 46. Qd5 {[%emt 0:00:30]} Qb6 {[%emt 0:00:30]} 47. Qe5+ {[%emt 0:00:30]} Kg8 {[%emt 0:00:30]} 48. Qd5+ {[%emt 0:00:30]} Rf7 {[%emt 0:00:30]} 49. Qd2 {[%emt 0:00:30]} a5 {[%emt 0:00:30]} 50. Re1 {[%emt 0:07:48]} b3 {[%emt 0:06:02]} 51. Re8+ {[%emt 0:03:07]} Kg7 {[%emt 0:01:31]} 52. Qb2+ {[%emt 0:00:26]} Qf6 {[%emt 0:02:57]} 53. Qe2 {[%emt 0:00:04]} h5 {[%emt 0:00:09]} 54. Re5 {[%emt 0:00:15]} a4 {[%emt 0:00:30]} 55. Rb5 {[%emt 0:00:30]} Re7 {[%emt 0:00:30]} 56. Qd2 {[%emt 0:00:30]} Re5 {[%emt 0:00:30]} 57. Qd7+ {[%emt 0:00:30]} Re7 {[%emt 0:00:30]} 58. Qd2 {[%emt 0:00:30]} Re5 {[%emt 0:00:30]} 59. Rb7+ {[%emt 0:00:30]} Re7 {[%emt 0:00:30]} 60. Rb5 {[%emt 0:00:30]} 1/2-1/2